bitfinex-derivatives/quotes_BNBF0:USTF0_20260114
["timestamp","ask_amount","ask_price","bid_price","bid_amount"]
[1768399441627,0.78640578,934.73,932.73,2.6696725]
[1768399441927,0.78640578,934.72,932.86,2.6696725]
[1768399442127,0.78640578,934.71,932.86,2.6696725]
[1768399442426,0.78640578,934.7,932.86,2.6696725]
[1768399442628,0.78640578,934.69,932.86,2.6696725]
[1768399442826,0.78640578,934.68,932.85,2.6696725]
[1768399443127,0.78640578,934.67,932.85,2.6696725]
[1768399443327,0.78640578,934.66,932.85,2.6696725]
[1768399443527,0.78640578,934.65,932.85,2.6696725]
[1768399443830,0.78640578,934.64,932.85,2.6696725]
[1768399444028,0.78640578,934.63,932.85,2.6696725]
[1768399444227,0.78640578,934.62,932.85,2.6696725]
[1768399444428,0.78640578,934.61,932.85,2.6696725]
[1768399444632,0.78640578,934.6,932.85,2.6696725]
[1768399444927,0.78640578,934.59,932.85,2.6696725]
[1768399445128,0.78640578,934.58,932.85,2.6696725]
[1768399445328,0.78640578,934.57,932.85,2.6696725]
[1768399445530,0.78640578,934.56,932.85,2.6696725]
[1768399445732,0.78640578,934.55,932.85,2.6696725]
[1768399445932,0.78640578,934.54,932.85,2.6696725]
[1768399446130,0.78640578,934.53,932.85,2.6696725]
[1768399446332,0.78640578,934.52,932.85,2.6696725]
[1768399446529,0.78640578,934.51,932.85,2.6696725]
[1768399446731,0.78640578,934.5,932.85,2.6696725]
[1768399446934,0.78640578,934.49,932.85,2.6696725]
[1768399447231,0.78640578,934.48,932.85,2.6696725]
[1768399447534,0.78640578,934.47,932.84,2.6696725]
[1768399447734,0.78640578,934.46,932.84,2.6696725]
[1768399448034,0.78640578,934.45,932.84,2.6696725]
[1768399448233,0.78640578,934.44,932.84,2.6696725]
[1768399448432,0.78640578,934.43,932.84,2.6696725]
[1768399448631,0.78640578,934.42,932.84,2.6696725]
[1768399448836,0.78640578,934.41,932.84,2.6696725]
[1768399449032,0.78640578,934.4,932.84,2.6696725]
[1768399449235,0.78640578,934.39,932.84,2.6696725]
[1768399449434,0.78640578,934.38,932.84,2.6696725]
[1768399449633,0.78640578,934.37,932.84,2.6696725]
[1768399449836,0.78640578,934.36,932.84,2.6696725]
[1768399450037,0.78640578,934.35,932.84,2.6696725]
[1768399450333,0.78640578,934.34,932.84,2.6696725]
[1768399450632,0.78640578,934.33,932.84,2.6696725]
[1768399450831,0.78640578,934.32,932.84,2.6696725]
[1768399451032,0.78640578,934.31,932.84,2.6696725]
[1768399451338,0.78640578,934.3,932.84,2.6696725]
[1768399451636,0.78640578,934.29,932.84,2.6696725]
[1768399451831,0.78640578,934.28,932.84,2.6696725]
[1768399452036,0.78640578,934.27,932.84,2.6696725]
[1768399452336,0.78640578,934.26,932.85,2.6696725]
[1768399452636,0.78640578,934.25,932.85,2.6696725]
[1768399452834,0.78640578,934.24,932.85,2.6696725]
[1768399453030,0.78640578,934.23,932.85,2.6696725]
[1768399453233,0.78640578,934.22,932.85,2.6696725]
[1768399453433,0.78640578,934.21,932.85,2.6696725]
[1768399453635,0.78640578,934.2,932.85,2.6696725]
[1768399453832,0.78640578,934.19,932.85,2.6696725]
[1768399454036,0.78640578,934.18,932.85,2.6696725]
[1768399454336,0.78640578,934.17,932.85,2.6696725]
[1768399454533,0.78640578,934.16,932.85,2.6696725]
[1768399454838,0.78640578,934.15,932.85,2.6696725]
[1768399455132,0.993,934.91,932.85,2.6696725]
[1768399455333,0.78370011,934.9,932.9,2.6696725]
[1768399455534,0.78370011,934.89,932.9,2.6696725]
[1768399455838,0.78370011,934.88,932.91,2.6696725]
[1768399456031,0.78370011,934.87,932.91,2.6696725]
[1768399456236,0.78370011,934.86,932.91,2.6696725]
[1768399456436,0.78370011,934.85,932.92,2.6696725]
[1768399456635,0.78370011,934.84,932.92,2.6696725]
[1768399456835,0.78370011,934.83,932.92,2.6696725]
[1768399457038,0.78370011,934.82,932.92,2.6696725]
[1768399457235,0.78370011,934.81,932.92,2.6696725]
[1768399457440,0.78370011,934.8,932.94,2.6696725]
[1768399457640,0.78370011,934.79,932.94,2.6696725]
[1768399457941,0.78370011,934.78,932.94,2.6696725]
[1768399458140,0.78370011,934.77,932.94,2.6696725]
[1768399458443,0.78370011,934.76,932.98,2.6696725]
[1768399458638,0.78370011,934.75,932.98,2.6696725]
[1768399458941,0.78370011,934.74,932.98,2.6696725]
[1768399459138,0.78370011,934.73,932.98,2.6696725]
[1768399459441,0.78370011,934.72,932.97,2.6696725]
[1768399459641,0.78370011,934.71,932.97,2.6696725]
[1768399459937,0.993,934.91,932.97,2.6696725]
[1768399459938,0.78370011,934.7,932.97,2.6696725]
[1768399460137,0.78370011,934.69,932.97,2.6696725]
[1768399460340,0.78370011,934.68,932.97,2.6696725]
[1768399460539,0.78370011,934.67,932.97,2.6696725]
[1768399460739,0.78370011,934.66,932.97,2.6696725]
[1768399460941,0.78370011,934.65,932.97,2.6696725]
[1768399461145,0.78370011,934.64,932.97,2.6696725]
[1768399461341,0.78370011,934.63,932.97,2.6696725]
[1768399461542,0.78370011,934.62,932.96,2.6696725]
[1768399461845,0.78370011,934.61,932.96,2.6696725]
[1768399462143,0.78370011,934.6,932.96,2.6696725]
[1768399462342,0.78370011,934.59,932.96,2.6696725]
[1768399462545,0.78370011,934.58,932.96,2.6696725]
[1768399462842,0.78370011,934.57,932.96,2.6696725]
[1768399463045,0.78370011,934.56,933.06,2.6696725]
[1768399463242,0.78370011,934.55,933.06,2.6696725]
[1768399463542,0.78370011,934.54,933.05,2.6696725]
[1768399463748,0.78370011,934.53,933.05,2.6696725]
[1768399464045,0.78370011,934.52,933.05,2.6696725]
[1768399464243,0.78370011,934.51,933.05,2.6696725]
[1768399464541,0.78370011,934.5,933.04,2.6696725]
[1768399464742,0.78370011,934.49,933.04,2.6696725]
[1768399464940,0.993,934.91,933.04,2.6696725]
[1768399464941,0.78370011,934.48,933.04,2.6696725]
[1768399465146,0.78370011,934.47,933.04,2.6696725]
[1768399465344,0.993,934.91,933.04,2.6696725]
[1768399465544,0.7819844,934.9,933.04,2.6696725]
[1768399465844,0.7819844,934.89,933.03,2.6696725]
[1768399466044,0.7819844,934.88,933.03,2.6696725]
[1768399466343,0.7819844,934.87,933.04,2.6696725]
[1768399466543,0.7819844,934.86,933.04,2.6696725]
[1768399466747,0.7819844,934.85,933.05,2.6696725]
[1768399467044,0.7819844,934.84,933.05,2.6696725]
[1768399467247,0.7819844,934.83,933.05,2.6696725]
[1768399467447,0.7819844,934.82,933.05,2.6696725]
[1768399467748,0.7819844,934.81,933.04,2.6696725]
[1768399467947,0.7819844,934.8,933.04,2.6696725]
[1768399468147,0.7819844,934.79,933.04,2.6696725]
[1768399468348,0.7819844,934.78,933.04,2.6696725]
[1768399468542,0.7819844,934.77,933.04,2.6696725]
[1768399468847,0.7819844,934.76,933.04,2.6696725]
[1768399469042,0.7819844,934.75,933.04,2.6696725]
[1768399469346,0.7819844,934.74,933.03,2.6696725]
[1768399469544,0.7819844,934.73,933.03,2.6696725]
[1768399469747,0.7819844,934.72,933.03,2.6696725]
[1768399469949,0.7819844,934.71,933.03,2.6696725]
[1768399470249,0.7819844,934.7,933.02,2.6696725]
[1768399470550,0.7819844,934.69,933.02,2.6696725]
[1768399470747,0.7819844,934.68,933.02,2.6696725]
[1768399470950,0.78123771,934.67,933.02,2.6696725]
[1768399471143,0.78123771,934.66,933.02,2.6696725]
[1768399471347,0.78123771,934.65,933.02,2.6696725]
[1768399471545,0.78123771,934.64,933.02,2.6696725]
[1768399471749,0.78123771,934.63,933.02,2.6696725]
[1768399472046,0.78123771,934.62,933.05,2.6696725]
[1768399472346,0.78123771,934.61,933.04,2.6696725]
[1768399472547,0.78123771,934.6,933.04,2.6696725]
[1768399472744,0.78123771,934.59,933.04,2.6696725]
[1768399472949,0.993,934.91,933.06,2.6696725]
[1768399473149,0.78100483,934.9,933.06,2.6696725]
[1768399473344,0.78100483,934.89,933.06,2.6696725]
[1768399473548,0.78100483,934.88,933.13,2.6696725]
[1768399473751,0.78100483,934.87,933.13,2.6696725]
[1768399473951,0.78100483,934.86,933.13,2.6696725]
[1768399474251,0.78100483,934.85,933.13,2.6696725]
[1768399474551,0.78100483,934.84,933.13,2.6696725]
[1768399474848,0.78100483,934.83,933.13,2.6696725]
[1768399475048,0.78100483,934.82,933.13,2.6696725]
[1768399475248,0.78100483,934.81,933.13,2.6696725]
[1768399475551,0.78100483,934.8,933.12,2.6696725]
[1768399475752,0.78100483,934.79,933.12,2.6696725]
[1768399475954,0.78100483,934.78,933.12,2.6696725]
[1768399476251,0.78100483,934.77,933.12,2.6696725]
[1768399476452,0.78100483,934.76,933.12,2.6696725]
[1768399476652,0.78100483,934.75,933.12,2.6696725]
[1768399476851,0.78100483,934.74,933.12,2.6696725]
[1768399477050,0.78100483,934.73,933.12,2.6696725]
[1768399477253,0.78100483,934.72,933.12,2.6696725]
[1768399477453,0.78100483,934.71,933.12,2.6696725]
[1768399477754,0.78100483,934.7,933.11,2.6696725]
[1768399478051,0.78100483,934.69,933.11,2.6696725]
[1768399478249,0.78100483,934.68,933.11,2.6696725]
[1768399478449,0.993,934.91,933.11,2.6696725]
[1768399478649,0.78061996,934.9,933.11,2.6696725]
[1768399478852,0.78061996,934.89,933.11,2.6696725]
[1768399479149,0.78061996,934.88,933.11,2.6696725]
[1768399479349,0.78061996,934.87,933.11,2.6696725]
[1768399479548,0.78061996,934.86,933.11,2.6696725]
[1768399479748,0.78061996,934.85,933.11,2.6696725]
[1768399479953,0.78061996,934.84,933.11,2.6696725]
[1768399480149,0.78061996,934.83,933.11,2.6696725]
[1768399480350,0.78061996,934.82,933.11,2.6696725]
[1768399480551,0.78061996,934.81,933.11,2.6696725]
[1768399480849,0.78061996,934.8,933.25,2.6696725]
[1768399481050,0.993,934.91,933.25,2.6696725]
[1768399481249,0.78063347,934.9,933.25,2.6696725]
[1768399481450,0.78063347,934.89,933.24,2.6696725]
[1768399481648,0.78063347,934.88,933.24,2.6696725]
[1768399481849,0.78063347,934.87,933.24,2.6696725]
[1768399482049,0.78063347,934.86,933.24,2.6696725]
[1768399482350,0.78063347,934.85,933.24,2.6696725]
[1768399482549,0.78063347,934.84,933.24,2.6696725]
[1768399482748,0.78063347,934.83,933.24,2.6696725]
[1768399483054,0.78063347,934.82,933.18,2.6696725]
[1768399483252,0.78063347,934.81,933.07,2.6696725]
[1768399483550,0.78063347,934.8,933.07,2.6696725]
[1768399483754,0.78063347,934.79,933.07,2.6696725]
[1768399483955,0.78063347,934.78,933.07,2.6696725]
[1768399484151,0.78063347,934.77,933.07,2.6696725]
[1768399484351,0.78063347,934.76,933.07,2.6696725]
[1768399484556,0.78063347,934.75,933.07,2.6696725]
[1768399484756,0.78063347,934.74,933.07,2.6696725]
[1768399484956,0.78063347,934.73,933.07,2.6696725]
[1768399485257,0.78063347,934.72,932.95,2.6696725]
[1768399485559,0.993,934.91,932.96,2.6696725]
[1768399486554,0.993,934.91,932.95,2.6696725]
[1768399487658,0.993,934.91,932.96,2.6696725]
[1768399488657,0.18619085,935.49,932.96,2.6696725]
[1768399488859,0.77921237,935.48,932.96,2.6696725]
[1768399489056,0.77921237,935.47,932.96,2.6696725]
[1768399489360,0.77921237,935.46,932.97,2.6696725]
[1768399489560,0.77921237,935.45,932.97,2.6696725]
[1768399489760,0.77921237,935.44,932.97,2.6696725]
[1768399489962,0.77921237,935.43,932.97,2.6696725]
[1768399490258,0.77921237,935.42,932.98,2.6696725]
[1768399490459,0.77921237,935.41,932.98,2.6696725]
[1768399490759,0.77921237,935.4,932.98,2.6696725]
[1768399490957,0.77921237,935.39,932.98,2.6696725]
[1768399491158,0.77940815,935.38,932.98,2.6696725]
[1768399491359,0.77940815,935.37,932.98,2.6696725]
[1768399491562,0.77940815,935.36,932.98,2.6696725]
[1768399491862,0.77940815,935.35,932.98,2.6696725]
[1768399492062,0.77940815,935.34,932.98,2.6696725]
[1768399492263,0.77940815,935.33,932.98,2.6696725]
[1768399492564,0.77940815,935.32,932.99,2.6696725]
[1768399492860,0.77940815,935.31,932.99,2.6696725]
[1768399493059,0.77940815,935.3,932.99,2.6696725]
[1768399493263,0.77940815,935.29,932.99,2.6696725]
[1768399493560,0.77940815,935.28,933.0,2.6696725]
[1768399493860,0.77940815,935.27,933.0,2.6696725]
[1768399494059,0.77940815,935.26,933.0,2.6696725]
[1768399494262,0.77940815,935.25,933.0,2.6696725]
[1768399494460,0.77940815,935.24,933.01,2.6696725]
[1768399494764,0.77940815,935.23,933.01,2.6696725]
[1768399494964,0.77940815,935.22,933.01,2.6696725]
[1768399495260,0.77940815,935.21,933.01,2.6696725]
[1768399495462,0.77940815,935.2,933.02,2.6696725]
[1768399495662,0.77940815,935.19,933.02,2.6696725]
[1768399495860,0.77940815,935.18,933.02,2.6696725]
[1768399496060,0.77940815,935.17,933.02,2.6696725]
[1768399496364,0.77940815,935.16,933.02,2.6696725]
[1768399496564,0.77940815,935.15,933.03,2.6696725]
[1768399496760,0.77940815,935.14,933.03,2.6696725]
[1768399496961,0.77940815,935.13,933.03,2.6696725]
[1768399497163,0.77940815,935.12,933.03,2.6696725]
[1768399497359,0.77940815,935.11,933.03,2.6696725]
[1768399497562,0.77940815,935.1,933.04,2.6696725]
[1768399497761,0.77940815,935.09,933.72,1.5957518]
[1768399497964,0.77940815,935.08,933.72,1.5957518]
[1768399498262,0.77940815,935.07,933.75,1.5957518]
[1768399498462,0.77940815,935.06,933.95,1.5957518]
[1768399498763,0.77940815,935.05,933.97,1.5957518]
[1768399498965,0.77940815,935.04,933.97,1.5957518]
[1768399499163,0.77940815,935.03,933.97,1.5957518]
[1768399499365,0.77940815,935.02,933.99,1.5957518]
[1768399499568,0.77940815,935.01,934.0,1.5957518]
[1768399499867,0.77940815,935.0,934.0,1.5957518]
[1768399500063,0.77940815,934.99,934.04,1.5957518]
[1768399500263,0.77940815,934.98,934.06,1.5957518]
[1768399500464,0.77940815,934.97,934.06,1.5957518]
[1768399500666,0.77940815,934.96,934.08,1.5957518]
[1768399500863,0.77940815,934.95,934.12,1.5957518]
[1768399501064,0.77940815,934.94,934.12,1.5957518]
[1768399501263,0.77940815,934.93,934.13,1.5957518]
[1768399501464,0.77940815,934.92,934.13,1.5957518]
[1768399501767,1.322,935.34,934.13,1.5957518]
[1768399501768,0.77940815,934.91,934.13,1.5957518]
[1768399501965,0.77940815,934.9,934.15,1.5957518]
[1768399502168,0.77940815,934.89,934.17,1.5957518]
[1768399502365,1.322,935.34,934.19,1.5957518]
[1768399502563,0.78007411,935.33,934.19,1.5957518]
[1768399502864,0.78007411,935.32,934.19,1.5957518]
[1768399503067,0.78007411,935.31,934.19,1.5957518]
[1768399503364,0.78007411,935.3,934.17,1.5957518]
[1768399503567,0.78007411,935.29,934.17,1.5957518]
[1768399503768,0.78007411,935.28,934.17,1.5957518]
[1768399504068,0.78007411,935.27,934.15,1.5957518]
[1768399504265,0.78007411,935.26,934.14,1.5957518]
[1768399504465,0.78007411,935.25,934.14,1.5957518]
[1768399504769,0.78007411,935.24,934.14,1.5957518]
[1768399504969,0.78007411,935.23,934.14,1.5957518]
[1768399505268,0.78007411,935.22,934.13,1.5957518]
[1768399505468,0.78007411,935.21,934.13,1.5957518]
[1768399505669,0.78007411,935.2,934.13,1.5957518]
[1768399505968,0.78007411,935.19,934.13,1.5957518]
[1768399506166,0.78007411,935.18,934.12,1.5957518]
[1768399506364,0.78007411,935.17,934.12,1.5957518]
[1768399506565,0.78007411,935.16,934.12,1.5957518]
[1768399506766,0.78007411,935.15,934.12,1.5957518]
[1768399507065,0.78007411,935.14,934.13,1.5957518]
[1768399507365,0.78007411,935.13,934.12,1.5957518]
[1768399507566,0.78007411,935.12,934.12,1.5957518]
[1768399507869,0.78007411,935.11,934.12,1.5957518]
[1768399508169,0.78007411,935.1,934.12,1.5957518]
[1768399508366,0.78007411,935.09,934.11,1.5957518]
[1768399508570,0.78007411,935.08,934.11,1.5957518]
[1768399508768,0.78007411,935.07,934.11,1.5957518]
[1768399509066,0.78007411,935.06,934.11,1.5957518]
[1768399509268,0.78007411,935.05,934.1,1.5957518]
[1768399509567,0.78007411,935.04,934.1,1.5957518]
[1768399509772,0.78007411,935.03,934.1,1.5957518]
[1768399509972,0.78007411,935.02,934.1,1.5957518]
[1768399510168,0.78007411,935.01,934.1,1.5957518]
[1768399510369,0.78007411,935.0,934.1,1.5957518]
[1768399510572,0.78007411,934.99,934.1,1.5957518]
[1768399510872,0.78007411,934.98,934.1,1.5957518]
[1768399511069,0.78007411,934.97,934.1,1.5957518]
[1768399511269,0.78007411,934.96,934.09,1.5957518]
[1768399511469,0.78007411,934.95,934.09,1.5957518]
[1768399511672,0.77884042,934.94,934.08,1.5957518]
[1768399511867,1.322,935.34,934.08,1.5957518]
[1768399512071,0.77885328,935.33,934.06,1.5957518]
[1768399512273,0.77885328,935.32,934.06,1.5957518]
[1768399512471,0.77885328,935.31,934.06,1.5957518]
[1768399512773,0.77885328,935.3,934.01,1.5957518]
[1768399512969,0.77885328,935.29,934.0,1.5957518]
[1768399513274,0.77885328,935.28,934.0,1.5957518]
[1768399513474,0.77885328,935.27,934.0,1.5957518]
[1768399513774,0.77885328,935.26,934.0,1.5957518]
[1768399514070,0.77885328,935.25,934.0,1.5957518]
[1768399514369,0.77885328,935.24,934.0,1.5957518]
[1768399514668,0.77885328,935.23,933.99,1.5957518]
[1768399514869,0.77885328,935.22,933.99,1.5957518]
[1768399515070,0.77885328,935.21,933.99,1.5957518]
[1768399515373,0.77885328,935.2,933.99,1.5957518]
[1768399515571,0.77885328,935.19,933.99,1.5957518]
[1768399515771,0.77885328,935.18,933.99,1.5957518]
[1768399515972,0.77885328,935.17,933.99,1.5957518]
[1768399516173,0.77885328,935.16,933.99,1.5957518]
[1768399516370,0.77885328,935.15,933.99,1.5957518]
[1768399516573,0.77885328,935.14,933.99,1.5957518]
[1768399516871,0.77885328,935.13,933.99,1.5957518]
[1768399517072,0.77885328,935.12,933.99,1.5957518]
[1768399517276,0.77885328,935.11,933.99,1.5957518]
[1768399517476,0.77885328,935.1,933.99,1.5957518]
[1768399517676,0.77885328,935.09,933.99,1.5957518]
[1768399517977,0.77885328,935.08,933.99,1.5957518]
[1768399518276,0.77885328,935.07,933.99,1.5957518]
[1768399518477,0.77885328,935.06,933.99,1.5957518]
[1768399518678,0.77885328,935.05,933.99,1.5957518]
[1768399518977,0.77885328,935.04,933.99,1.5957518]
[1768399519178,0.77885328,935.03,933.99,1.5957518]
[1768399519378,1.322,935.34,933.99,1.5957518]
[1768399519379,0.77885328,935.02,933.99,1.5957518]
[1768399519579,0.77885328,935.01,933.99,1.5957518]
[1768399519879,0.77885328,935.0,933.99,1.5957518]
[1768399520076,0.77885328,934.99,934.01,1.5957518]
[1768399520280,0.77885328,934.98,934.02,1.5957518]
[1768399520480,0.77885328,934.97,934.01,1.5957518]
[1768399520676,0.77885328,934.96,934.01,1.5957518]
[1768399520875,0.77885328,934.95,934.04,1.5957518]
[1768399521080,0.77885328,934.94,934.06,1.5957518]
[1768399521280,1.322,935.34,934.07,1.5957518]
[1768399521482,0.77768968,935.33,934.07,1.5957518]
[1768399521785,0.77768968,935.32,934.09,1.5957518]
[1768399521982,0.77768968,935.31,934.09,1.5957518]
[1768399522181,0.77768968,935.3,934.09,1.5957518]
[1768399522382,0.77768968,935.29,934.09,1.5957518]
[1768399522682,0.77768968,935.28,934.09,1.5957518]
[1768399522879,0.77768968,935.27,934.09,1.5957518]
[1768399523084,0.77768968,935.26,934.09,1.5957518]
[1768399523280,0.77768968,935.25,934.09,1.5957518]
[1768399523486,0.77768968,935.24,934.09,1.5957518]
[1768399523685,0.77768968,935.23,934.09,1.5957518]
[1768399523886,0.77768968,935.22,934.1,1.5957518]
[1768399524086,0.77768968,935.21,934.1,1.5957518]
[1768399524285,0.77768968,935.2,934.1,1.5957518]
[1768399524586,0.77768968,935.19,934.1,1.5957518]
[1768399524783,0.77768968,935.18,934.1,1.5957518]
[1768399524982,0.77768968,935.17,934.1,1.5957518]
[1768399525280,0.77768968,935.16,934.1,1.5957518]
[1768399525482,0.77768968,935.15,934.1,1.5957518]
[1768399525780,0.77768968,935.14,934.1,1.5957518]
[1768399525979,0.77768968,935.13,934.1,1.5957518]
[1768399526182,0.77768968,935.12,934.09,1.5957518]
[1768399526378,0.77768968,935.11,934.09,1.5957518]
[1768399526584,0.77768968,935.1,934.09,1.5957518]
[1768399526782,0.77768968,935.09,934.09,1.5957518]
[1768399526986,0.77768968,935.08,934.09,1.5957518]
[1768399527185,0.77768968,935.07,934.09,1.5957518]
[1768399527384,0.77768968,935.06,934.09,1.5957518]
[1768399527581,0.77768968,935.05,934.09,1.5957518]
[1768399527781,0.77768968,935.04,934.09,1.5957518]
[1768399527983,0.77768968,935.03,934.09,1.5957518]
[1768399528184,0.77768968,935.02,934.09,1.5957518]
[1768399528382,0.77768968,935.01,934.09,1.5957518]
[1768399528582,0.77768968,935.0,934.09,1.5957518]
[1768399528786,0.77768968,934.99,934.09,1.5957518]
[1768399528984,0.18607735,935.92,934.09,1.5957518]
[1768399529282,0.77735189,935.91,934.09,1.5957518]
[1768399529484,0.77735189,935.9,934.09,1.5957518]
[1768399529782,0.77735189,935.89,934.09,1.5957518]
[1768399530085,0.77735189,935.88,934.09,1.5957518]
[1768399530282,0.77735189,935.87,934.09,1.5957518]
[1768399530581,0.77735189,935.86,934.09,1.5957518]
[1768399530787,0.77735189,935.85,934.09,1.5957518]
[1768399530988,0.77735189,935.84,934.09,1.5957518]
[1768399531188,0.77735189,935.83,934.09,1.5957518]
[1768399531485,0.77735189,935.82,934.1,1.5957518]
[1768399531684,0.77735189,935.81,934.1,1.5957518]
[1768399531989,0.77735189,935.8,934.1,1.5957518]
[1768399532188,0.77735189,935.79,934.1,1.5957518]
[1768399532385,0.77735189,935.78,934.1,1.5957518]
[1768399532589,0.77735189,935.77,934.12,1.5957518]
[1768399532789,0.77735189,935.76,934.21,1.5957518]
[1768399532990,0.77735189,935.75,934.22,1.5957518]
[1768399533186,0.77735189,935.74,934.21,1.5957518]
[1768399533389,0.77735189,935.73,934.22,1.5957518]
[1768399533586,0.77735189,935.72,934.22,1.5957518]
[1768399533785,0.77735189,935.71,934.22,1.5957518]
[1768399533988,0.77735189,935.7,934.23,1.5957518]
[1768399534288,0.77735189,935.69,934.36,1.5957518]
[1768399534489,0.77735189,935.68,934.36,1.5957518]
[1768399534689,0.77735189,935.67,934.36,1.5957518]
[1768399534990,0.77735189,935.66,934.39,1.5957518]
[1768399535286,0.77735189,935.65,934.39,1.5957518]
[1768399535489,0.77735189,935.64,934.39,1.5957518]
[1768399535690,0.77735189,935.63,934.39,1.5957518]
[1768399535891,0.77735189,935.62,934.39,1.5957518]
[1768399536187,0.77735189,935.61,934.38,1.5957518]
[1768399536387,0.77735189,935.6,934.38,1.5957518]
[1768399536588,0.77735189,935.59,934.38,1.5957518]
[1768399536791,0.77735189,935.58,934.38,1.5957518]
[1768399537088,0.77735189,935.57,934.38,1.5957518]
[1768399537391,0.77735189,935.56,934.38,1.5957518]
[1768399537586,0.77735189,935.55,934.38,1.5957518]
[1768399537791,0.77735189,935.54,934.51,1.5957518]
[1768399538092,0.77735189,935.53,934.51,1.5957518]
[1768399538387,0.77735189,935.52,934.5,1.5957518]
[1768399538589,0.77735189,935.51,934.5,1.5957518]
[1768399538789,0.77735189,935.5,934.5,1.5957518]
[1768399538993,0.77735189,935.49,934.5,1.5957518]
[1768399539192,0.77735189,935.48,934.49,1.5957518]
[1768399539391,0.77735189,935.47,934.5,1.5957518]
[1768399539687,0.77735189,935.46,934.5,1.5957518]
[1768399539987,0.77735189,935.45,934.5,1.5957518]
[1768399540188,0.77735189,935.44,934.48,1.5957518]
[1768399540391,0.77735189,935.43,934.5,1.5957518]
[1768399540691,0.77735189,935.42,934.5,1.5957518]
[1768399540891,0.77735189,935.41,934.5,1.5957518]
[1768399541088,0.77735189,935.4,934.5,1.5957518]
[1768399541391,0.77735189,935.39,934.48,1.5957518]
[1768399541592,0.77735189,935.38,934.48,1.5957518]
[1768399541893,0.879,935.78,934.48,1.5957518]
[1768399542092,0.77708006,935.77,934.48,1.5957518]
[1768399542289,0.77708006,935.76,934.49,1.5957518]
[1768399542589,0.77708006,935.75,934.49,1.5957518]
[1768399542791,0.77708006,935.74,934.49,1.5957518]
[1768399542993,0.77708006,935.73,934.49,1.5957518]
[1768399543189,0.879,935.78,933.81,2.6696725]
[1768399543190,0.77708006,935.72,934.48,1.5957518]
[1768399543490,0.77708006,935.71,934.49,1.5957518]
[1768399543695,0.77708006,935.7,934.49,1.5957518]
[1768399543894,0.77708006,935.69,934.49,1.5957518]
[1768399544094,0.77708006,935.68,934.49,1.5957518]
[1768399544292,0.77708006,935.67,934.49,1.5957518]
[1768399544493,0.77708006,935.66,934.49,1.5957518]
[1768399544697,0.77708006,935.65,934.49,1.5957518]
[1768399544894,0.77708006,935.64,934.49,1.5957518]
[1768399545195,0.77708006,935.63,934.48,1.5957518]
[1768399545394,0.77708006,935.62,934.49,1.5957518]
[1768399545595,0.77708006,935.61,934.49,1.5957518]
[1768399545891,0.77708006,935.6,934.49,1.5957518]
[1768399546395,0.77708006,935.59,934.48,1.5957518]
[1768399546594,0.77708006,935.58,934.48,1.5957518]
[1768399546797,0.77708006,935.57,934.48,1.5957518]
[1768399546998,0.77284427,935.56,934.48,1.5957518]
[1768399547300,0.77284427,935.55,934.48,1.5957518]
[1768399547499,0.77284427,935.54,934.48,1.5957518]
[1768399547693,0.77284427,935.53,934.48,1.5957518]
[1768399547994,0.77284427,935.52,934.48,1.5957518]
[1768399548195,0.77284427,935.51,934.48,1.5957518]
[1768399548398,0.77284427,935.5,934.47,1.5957518]
[1768399548595,0.77284427,935.49,934.47,1.5957518]
[1768399548799,0.77284427,935.48,934.47,1.5957518]
[1768399548995,0.77284427,935.47,934.47,1.5957518]
[1768399549196,0.77284427,935.46,934.46,1.5957518]
[1768399549497,0.77284427,935.45,934.47,1.5957518]
[1768399549696,0.77284427,935.44,934.47,1.5957518]
[1768399549898,0.77284427,935.43,934.47,1.5957518]
[1768399550094,0.77284427,935.42,934.47,1.5957518]
[1768399550298,0.77284427,935.41,934.46,1.5957518]
[1768399550494,0.879,935.78,934.46,1.5957518]
[1768399550700,0.77240429,935.77,934.46,1.5957518]
[1768399550999,0.77240429,935.76,934.46,1.5957518]
[1768399551200,0.77240429,935.75,934.46,1.5957518]
[1768399551400,0.77240429,935.74,934.46,1.5957518]
[1768399551601,0.77240429,935.73,934.46,1.5957518]
[1768399551801,0.77240429,935.72,934.46,1.5957518]
[1768399552002,0.77240429,935.71,934.46,1.5957518]
[1768399552202,0.77240429,935.7,934.46,1.5957518]
[1768399552404,0.77240429,935.69,934.46,1.5957518]
[1768399552603,0.77240429,935.68,934.46,1.5957518]
[1768399552804,0.77240429,935.67,934.46,1.5957518]
[1768399553099,0.77240429,935.66,934.46,1.5957518]
[1768399553301,0.77240429,935.65,934.46,1.5957518]
[1768399553504,0.77240429,935.64,934.46,1.5957518]
[1768399553699,0.77240429,935.63,934.46,1.5957518]
[1768399554000,0.77240429,935.62,934.46,1.5957518]
[1768399554199,0.77240429,935.61,934.45,1.5957518]
[1768399554400,0.77240429,935.6,934.46,1.5957518]
[1768399554603,0.77240429,935.59,934.46,1.5957518]
[1768399554803,0.77240429,935.58,934.46,1.5957518]
[1768399555004,0.77240429,935.57,934.46,1.5957518]
[1768399555204,0.77240429,935.56,934.46,1.5957518]
[1768399555404,0.77240429,935.55,934.46,1.5957518]
[1768399555601,0.77240429,935.54,934.46,1.5957518]
[1768399555800,0.77240429,935.53,934.46,1.5957518]
[1768399556002,0.77240429,935.52,934.46,1.5957518]